bitfinex-derivatives/quotes_ETHF0:USTF0_20210703
["timestamp","ask_amount","ask_price","bid_price","bid_amount"]
[1625305800687,15.3026,2215.3,2214.3,1.0]
[1625305801081,14.1254,2215.7,2214.3,1.0]
[1625305801780,2.20527,2215.2,2215.0,2.20527]
[1625305802339,5.22347,2215.2,2215.0,2.20527]
[1625305802633,5.22347,2215.2,2214.8,2.20527]
[1625305803635,5.22347,2215.2,2213.9,1.0]
[1625305803836,2.20527,2214.6,2214.5,2.20527]
[1625305803936,2.20527,2214.6,2214.3,2.20527]
[1625305804485,5.81117,2214.6,2214.3,2.20527]
[1625305805791,2.20527,2214.5,2214.3,2.20527]
[1625305806544,2.20527,2214.5,2213.1,1.0]
[1625305807105,2.20527,2214.5,2213.2,16.398982]
[1625305807205,2.20527,2214.5,2213.3,1.0]
[1625305807858,2.20527,2214.0,2213.9,2.20527]
[1625305808307,5.78897,2214.0,2213.9,2.20527]
[1625305809811,7.99424,2214.0,2213.9,2.20527]
[1625305811930,3.5837,2214.0,2213.9,2.20527]
[1625305812079,14.7138,2214.9,2213.9,2.20527]
[1625305813186,14.7138,2214.9,2214.0,1.0]
[1625305813888,4.41054,2214.1,2213.9,2.20527]
[1625305813989,7.52834,2214.1,2213.9,2.20527]
[1625305821700,2.20527,2214.1,2213.9,2.20527]
[1625305824959,2.20527,2214.5,2213.9,3.20527]
[1625305825914,2.20527,2214.0,2213.9,3.20527]
[1625305826062,2.20527,2214.0,2213.9,2.20527]
[1625305826463,2.9867,2214.1,2213.9,2.20527]
[1625305827215,2.20527,2214.5,2213.9,3.20527]
[1625305827963,4.41054,2214.5,2214.4,2.20527]
[1625305830866,15.99655019,2215.7,2214.4,2.20527]
[1625305830967,15.99655019,2215.7,2214.5,1.0]
[1625305831973,2.20527,2214.9,2214.8,2.20527]
[1625305834439,2.20527,2214.9,2214.8,18.588871]
[1625305835241,7e-05,2214.9,2214.8,18.588871]
[1625305835344,2.20527,2215.1,2214.8,22.322471]
[1625305835592,1.32197492,2216.1,2214.8,22.322471]
[1625305835793,2.95076489,2216.2,2214.8,22.322471]
[1625305835794,1.1,2216.2,2214.8,22.322471]
[1625305835894,1.1,2216.2,2214.9,1.0]
[1625305835995,2.20527,2215.9,2215.8,2.20527]
[1625305837952,4.41054,2215.9,2215.8,2.20527]
[1625305840362,4.41054,2215.9,2215.5,2.20527]
[1625305842054,2.20527,2215.6,2215.5,2.20527]
[1625305842455,55.20827,2215.6,2215.5,2.20527]
[1625305843455,58.10887,2215.6,2215.5,2.20527]
[1625305847966,58.10887,2215.6,2215.3,2.20527]
[1625305848116,2.20527,2215.4,2215.3,2.20527]
[1625305850871,3.53075773,2215.4,2215.3,2.20527]
[1625305852323,2.20527,2215.4,2215.3,2.20527]
[1625305853026,3.53138564,2215.4,2215.3,2.20527]
[1625305854427,2.20527,2215.4,2215.3,2.20527]
[1625305855284,3.53211095,2215.4,2215.3,2.20527]
[1625305856696,2.20527,2215.4,2215.3,2.20527]
[1625305857202,3.53303377,2215.4,2215.3,2.20527]
[1625305857702,2.20527,2215.4,2215.3,2.20527]
[1625305859257,4.06557714,2215.4,2215.3,2.20527]
[1625305860311,3.53396865,2215.4,2215.3,2.20527]
[1625305860761,2.20527,2215.4,2215.3,2.20527]
[1625305861262,4.06634678,2215.4,2215.3,2.20527]
[1625305861866,4.86397801,2215.4,2215.3,2.20527]
[1625305862115,7.42097801,2215.4,2215.3,2.20527]
[1625305863117,4.76227,2215.4,2215.3,2.20527]
[1625305863218,2.20527,2215.4,2215.3,2.20527]
[1625305863816,2.20527,2215.4,2215.3,7e-05]
[1625305863918,5.37407,2215.4,2213.7,15.6128]
[1625305864018,39.3355,2215.0,2213.8,1.0]
[1625305864218,2.20527,2214.3,2214.2,2.20527]
[1625305864318,1.20527,2214.3,2214.2,2.20527]
[1625305864519,1.20527,2214.3,2214.2,18.531875]
[1625305864719,2.693,2214.8,2214.2,18.531875]
[1625305865626,41.85179791,2214.9,2214.2,18.531875]
[1625305865729,40.5215,2214.9,2214.2,18.531875]
[1625305865926,1.0,2214.8,2214.2,18.531875]
[1625305866126,1.0,2214.8,2214.2,2.20527]
[1625305866234,3.20527,2214.8,2214.7,2.20527]
[1625305867599,4.53589974,2214.8,2214.7,2.20527]
[1625305867805,4.53589974,2214.8,2214.2,2.20527]
[1625305867905,4.53589974,2214.8,2213.3,1.31200193]
[1625305868154,5.86679073,2214.8,2213.1,1.31340447]
[1625305868259,2.20527,2213.3,2213.2,2.20527]
[1625305868355,4.56357,2213.3,2213.2,2.20527]
[1625305868553,1.0,2213.2,2213.1,1.31340447]
[1625305868756,1.0,2213.2,2212.6,1.31484701]
[1625305869510,1.0,2213.2,2212.0,4.20751042]
[1625305869511,1.0,2213.2,2212.1,1.31610291]
[1625305870161,53.11017,2213.3,2212.2,16.525487]
[1625305870265,2.20527,2212.8,2212.7,2.20527]
[1625305871921,1.33182263,2213.7,2212.7,2.20527]
[1625305872321,2.20527,2213.3,2213.2,2.20527]
[1625305872872,3.20527,2213.3,2213.2,2.20527]
[1625305873221,3.20527,2213.3,2212.3,1.31567032]
[1625305873472,3.20527,2213.3,2212.2,1.31557471]
[1625305874024,1.33179866,2213.2,2211.8,1.31681184]
[1625305874174,1.0,2213.1,2212.3,16.485552]
[1625305874275,2.20527,2212.4,2212.3,16.485552]
[1625305874375,2.20527,2212.4,2212.2,18.620306]
[1625305874579,2.20527,2212.4,2212.2,2.20527]
[1625305875728,1.33127506,2213.2,2212.2,2.20527]
[1625305875877,1.33127506,2213.2,2212.2,5.84967]
[1625305875984,1.33118721,2213.4,2212.3,16.4359]
[1625305876327,2.20527,2212.9,2212.6,2.20527]
[1625305876631,2.20527,2212.9,2212.7,16.36386]
[1625305876930,2.20527,2212.9,2212.6,2.20527]
[1625305878083,2.20527,2213.1,2212.6,2.20527]
[1625305878191,2.20527,2213.1,2212.7,16.389468]
[1625305878283,2.20527,2213.1,2212.9,2.20527]
[1625305878944,3.20527,2213.1,2212.9,2.20527]
[1625305882203,2.20527,2213.1,2212.9,2.20527]
[1625305882305,2.20527,2213.1,2212.9,4.87297]
[1625305885270,2.20527,2213.1,2213.0,16.313731]
[1625305889987,2.20527,2213.1,2212.9,4.87297]
[1625305892657,3.20527,2213.1,2212.9,4.87297]
[1625305894311,3.20527,2213.1,2212.9,2.20527]
[1625305894412,3.20527,2213.1,2212.6,2.20527]
[1625305895116,3.20527,2213.1,2211.5,1.31130726]
[1625305895263,3.20527,2213.1,2211.4,17.17093017]
[1625305895264,3.20527,2213.1,2211.4,16.64695482]
[1625305895717,3.20527,2213.1,2211.5,16.305812]
[1625305896517,2.20527,2212.0,2211.9,2.20527]
[1625305898523,2.20527,2212.0,2211.9,18.740065]
[1625305900027,1.0,2213.0,2211.9,18.740065]
[1625305900433,2.20527,2212.8,2212.6,2.20527]
[1625305900535,2.20527,2212.8,2212.6,5.34267]
[1625305901385,2.20527,2212.8,2212.7,16.538127]
[1625305902037,2.20527,2212.8,2212.6,5.34267]
[1625305903906,3.20527,2212.8,2212.6,5.34267]
[1625305904511,2.20527,2212.7,2212.6,5.34267]
[1625305904608,2.20527,2212.7,2212.6,3.1374]
[1625305904709,3.20527,2212.7,2212.2,2.20527]
[1625305906481,3.20527,2212.3,2212.2,2.20527]
[1625305906883,2.20527,2212.3,2212.2,2.20527]
[1625305907382,3.20527,2212.3,2212.2,2.20527]
[1625305909389,2.20527,2212.3,2212.2,2.20527]
[1625305909489,3.20527,2212.3,2212.2,2.20527]
[1625305909740,2.20527,2212.3,2212.2,2.20527]
[1625305910788,3.20527,2212.3,2212.2,2.20527]
[1625305910890,2.20527,2212.3,2212.2,2.20527]
[1625305912148,2.20527,2212.3,2212.2,5.77847]
[1625305914308,3.20527,2212.3,2212.2,5.77847]
[1625305920181,2.20527,2212.3,2212.2,5.77847]
[1625305920280,3.20527,2212.3,2212.2,5.77847]
[1625305920433,2.20527,2212.3,2212.2,5.77847]
[1625305921434,1.0,2212.6,2212.2,5.77847]
[1625305921632,2.20527,2212.7,2212.2,5.77847]
[1625305921882,2.20527,2212.7,2212.3,16.524005]
[1625305922533,2.20527,2212.7,2212.6,2.20527]
[1625305922787,1.32535306,2214.1,2212.6,2.20527]
[1625305922887,7.95225776,2215.4,2212.6,2.20527]
[1625305922888,1.32521389,2214.3,2212.6,2.20527]
[1625305922987,1.32521389,2214.3,2212.6,18.544026]
[1625305923439,1.0,2214.2,2213.2,54.998]
[1625305923538,1.0,2214.2,2213.2,58.4594]
[1625305923742,1.0,2214.2,2213.3,16.50906]
[1625305924544,1.0,2214.2,2213.8,2.20527]
[1625305924645,2.20527,2213.9,2213.8,2.20527]
[1625305926344,1.0,2214.6,2213.8,2.20527]
[1625305926449,1.0,2214.6,2213.8,5.39287]
[1625305926546,1.0,2214.6,2214.3,2.20527]
[1625305926647,2.20527,2214.4,2214.3,2.20527]
[1625305927699,2.20527,2214.4,2214.3,18.736681]
[1625305928563,2.20527,2214.4,2214.3,20.941951]
[1625305930615,3.20527,2214.4,2214.3,20.941951]
[1625305930714,2.20527,2214.4,2214.3,4.41054]
[1625305931076,3.20527,2214.4,2214.3,4.41054]
[1625305931420,2.20527,2214.4,2214.3,4.41054]
[1625305931926,2.20527,2214.4,2213.2,0.9113]
[1625305932026,2.20527,2214.4,2212.9,5.0]
[1625305932525,2.20527,2214.4,2213.0,16.352227]
[1625305932626,2.20527,2214.4,2214.1,2.20527]
[1625305933730,3.20527,2214.4,2214.1,2.20527]
[1625305934182,2.20527,2214.4,2214.1,2.20527]
[1625305934682,2.20527,2214.3,2214.1,2.20527]
[1625305935986,2.20527,2214.3,2214.2,16.275629]
[1625305936137,2.20527,2214.3,2214.2,19.955329]
[1625305940098,1.0,2215.2,2214.2,19.955329]
[1625305940208,16.56873736,2215.6,2214.2,19.955329]
[1625305940294,1.32583736,2215.6,2214.2,19.955329]
[1625305940445,14.9491,2215.7,2214.2,19.955329]
[1625305940744,2.20527,2215.2,2215.1,5.18057]
[1625305942704,4.41054,2215.2,2215.1,5.18057]
[1625305945772,4.41054,2215.2,2215.1,21.576568]
[1625305948279,4.41054,2215.2,2215.1,5.18057]
[1625305953161,4.41054,2215.2,2215.1,21.512494]
[1625305953914,1.0,2215.5,2215.1,21.512494]
[1625305954062,1.0,2215.6,2215.1,26.512494]
[1625305954213,1.0,2216.0,2215.1,26.512494]
[1625305954413,1.0,2216.0,2215.1,21.512494]
[1625305954516,1.0,2216.0,2215.2,5.0]
[1625305954615,1.0,2216.0,2215.4,54.672]
[1625305954774,1.0,2216.0,2215.9,4.41054]
[1625305954871,1.0,2216.0,2215.9,7.40784]
[1625305955624,1.32385575,2216.6,2215.9,7.40784]
[1625305955724,1.0,2216.5,2215.9,7.40784]
[1625305956476,1.0,2216.5,2216.0,16.332599]
[1625305956778,1.0,2216.5,2216.4,4.41054]
[1625305957982,0.56088889,2216.9,2216.4,20.819065]
[1625305958285,3.52760409,2217.1,2216.4,20.819065]
[1625305958385,1.85126772,2217.2,2216.4,29.546565]
[1625305958794,2.64466817,2217.3,2217.1,4.41054]
[1625305958996,2.64466817,2217.3,2217.2,50.415]
[1625305959145,2.20527,2217.8,2217.2,66.86781]
[1625305959244,2.64313427,2218.4,2217.2,66.86781]
[1625305959347,1.21613427,2218.4,2217.2,66.86781]
[1625305959450,1.21613427,2218.4,2217.3,5.0]
[1625305959699,0.20193427,2218.4,2217.4,16.415171]
[1625305959800,1.18851683,2218.5,2217.5,5.0]
[1625305960048,0.93851683,2218.5,2217.6,16.394206]
[1625305960147,0.83851683,2218.5,2217.7,5.0]
[1625305960252,2.19397094,2218.9,2217.7,5.0]
[1625305960450,8.30455784,2221.8,2217.7,5.0]
[1625305960451,3.44968164,2220.0,2217.7,5.0]
[1625305960551,3.44968164,2220.0,2218.7,55.0175]
[1625305960902,3.44968164,2220.0,2219.9,4.41054]
[1625305961106,0.02,2220.0,2219.9,4.41054]
[1625305961305,6.42509435,2220.7,2219.9,4.41054]
[1625305961453,6.37478044,2220.9,2219.9,4.41054]
[1625305961554,5.27478044,2220.9,2219.9,4.41054]
[1625305961705,5.27478044,2220.9,2219.9,7.38824]
[1625305961807,4.21935714,2220.8,2219.9,6.32036392]
[1625305961910,0.56088889,2221.0,2219.9,6.32036392]
[1625305962153,0.56088889,2221.0,2220.0,16.394461]
[1625305962303,8.793e-05,2221.3,2220.6,42.8344]
[1625305962504,8.793e-05,2221.3,2220.7,16.395938]
[1625305962855,8.793e-05,2221.3,2221.2,4.41054]
[1625305966863,8.793e-05,2221.3,2220.5,2.772]
[1625305966965,8.793e-05,2221.3,2219.5,15.2376]
[1625305967063,3.33778793,2221.3,2219.5,15.2376]
[1625305967313,3.33778793,2221.3,244.41,136.63817119]
[1625305967412,3.33778793,2221.3,2214.9,79.9341]
[1625305967615,3.33778793,2221.3,2217.3,15.1835]
[1625305967765,3.33778793,2221.3,2217.4,1.0]
[1625305967863,3.33778793,2221.3,2217.7,16.25555]
[1625305967964,3.33778793,2221.3,2217.8,6.0]
[1625305968323,3.33778793,2221.3,2218.7,42.9611]
[1625305968419,3.33778793,2221.3,2218.7,45.9462]
[1625305968671,3.33778793,2221.3,2218.8,16.44618]
[1625305968879,2.20527,2220.6,2220.5,2.20527]
[1625305969632,2.20527,2220.6,2220.3,2.20527]
[1625305970937,2.20527,2220.4,2220.3,2.20527]
[1625305974222,8.793e-05,2221.3,2220.3,2.20527]
[1625305974971,2.20527,2220.4,2220.3,2.20527]
[1625305975271,2.20527,2220.6,2220.3,2.20527]
[1625305975737,8.793e-05,2221.3,2220.3,49.15617]
[1625305976993,8.793e-05,2221.3,2221.2,4.41054]
[1625305977342,8.793e-05,2221.3,2221.2,3.34346662]
[1625305981248,8.793e-05,2221.3,2221.2,6.16296662]
[1625305983604,8.793e-05,2221.3,2221.2,3.34346662]
[1625305984906,8.793e-05,2221.3,2220.4,2.7017]
[1625305985008,2.20527,2220.5,2220.4,2.7017]
[1625305985107,5.81227,2220.5,2220.2,2.20527]
[1625305986109,5.81227,2220.5,2219.9,2.20527]
[1625305986957,2.20527,2220.0,2219.9,4.41054]
[1625305987075,5.72947,2220.0,2219.9,4.41054]
[1625305988927,5.72947,2220.0,2218.4,1.0]
[1625305989029,2.20527,2219.3,2219.2,2.20527]
[1625305989126,5.13947,2219.3,2219.2,2.20527]
[1625305990036,5.13947,2219.3,2217.0,14.9317]
[1625305990335,5.13947,2219.3,2211.9,7.52489817]
[1625305990434,1.0,2219.2,2214.2,15.3214]
[1625305990552,1.0,2219.2,2216.3,0.8892]
[1625305990635,5.13947,2219.3,2217.3,16.499791]
[1625305990837,5.13947,2219.3,2216.6,5.0]
[1625305990987,2.20527,2218.6,2218.5,2.20527]
[1625305993042,4.41054,2218.6,2218.5,2.20527]
[1625305997552,1.0,2219.9,2218.5,2.20527]
[1625305997701,29.1949,2220.4,2218.5,5.34487]
[1625305997801,29.1949,2220.4,2219.1,50.3998]
[1625305998104,14.7337,2220.4,2219.1,50.3998]
[1625305998454,14.7337,2220.4,2219.0,3.3658]
[1625305999102,2.20527,2219.3,2219.0,3.3658]
[1625305999203,2.20527,2219.3,2218.9,2.20527]
[1625305999304,2.20527,2219.6,2218.9,2.20527]
[1625306001162,20.8337,2220.4,2218.9,2.20527]
[1625306001163,4.41054,2219.0,2218.9,2.20527]
[1625306001263,6.89064,2219.0,2218.9,2.20527]
[1625306001664,2.4801,2219.0,2218.9,2.20527]
[1625306002421,3.1333,2219.6,2218.9,2.20527]
[1625306003124,4.41054,2219.0,2218.9,2.20527]
[1625306003223,7.34664,2219.0,2218.9,2.20527]
[1625306007795,4.41054,2219.0,2218.9,2.20527]
[1625306008099,1.0,2220.3,2218.9,2.20527]
[1625306008248,14.7337,2220.4,2218.9,5.47187]
[1625306009155,2.20527,2219.6,2219.5,2.20527]
[1625306011106,4.41054,2219.6,2219.5,2.20527]
[1625306013764,4.41054,2219.6,2218.2,1.0]
[1625306013864,7.38614,2219.6,2217.8,5.0]
[1625306014467,7.38614,2219.6,2217.9,16.492059]
[1625306014817,7.38614,2219.6,2217.9,24.897959]
[1625306014918,7.38614,2219.6,2217.9,25.807459]
[1625306015119,7.38614,2219.6,2217.9,9.3154]
[1625306015218,5.18087,2219.6,2219.4,2.20527]
[1625306015318,2.20527,2219.6,2219.4,2.20527]
[1625306017170,2.20527,2219.5,2219.4,2.20527]
[1625306023812,2.20527,2219.5,2214.6,3.293214]
[1625306023962,2.20527,2219.5,2217.4,1.0]
[1625306024514,2.20527,2219.5,2217.8,16.23793]
[1625306025316,4.96427,2219.0,2218.8,2.20527]
[1625306025517,4.96427,2219.0,2218.6,2.20527]
[1625306027270,2.20527,2218.7,2218.3,2.20527]
[1625306029272,2.20527,2218.4,2218.1,2.20527]
[1625306029421,4.58727,2218.4,2218.1,2.20527]
[1625306029723,4.58727,2218.4,2216.6,1.0]
[1625306029821,4.58727,2218.4,2216.2,5.0]
[1625306029974,9.58727,2218.4,2216.1,1.00837922]
[1625306030072,4.58727,2218.4,2216.1,1.00837922]
[1625306030272,9.58727,2218.4,2216.1,1.00837922]
[1625306030378,4.58727,2218.4,2216.4,15.913]
[1625306030721,4.58727,2218.4,2216.4,1.0]
[1625306030822,41.2244,2218.2,2216.1,1.00837922]
[1625306030972,4.58727,2218.4,2216.1,1.00837922]
[1625306031274,2.20527,2217.0,2216.9,2.20527]
[1625306033186,2.20527,2217.0,2216.1,1.00837922]
[1625306033287,2.20527,2216.5,2216.3,2.20527]
[1625306041829,2.20527,2216.5,2216.1,3.21364922]
[1625306042482,2.20527,2216.5,2216.1,1.00837922]
[1625306043281,2.20527,2216.5,2216.1,3.21364922]
[1625306043381,2.20527,2216.2,2216.1,3.21364922]
[1625306044234,2.20527,2216.2,2216.1,1.00837922]
[1625306045790,4.78207,2216.2,2216.1,1.00837922]
[1625306054581,4.78207,2216.2,2215.4,2.20527]
[1625306055436,4.41054,2215.5,2215.4,2.20527]
[1625306055586,4.41054,2215.5,2213.6,14.8095]
[1625306055836,4.41054,2215.5,2213.7,1.0]
[1625306056185,4.41054,2215.5,2213.7,17.336143]
[1625306056435,4.41054,2215.5,2213.7,16.336143]
[1625306056539,4.41054,2215.5,2213.7,17.235243]
[1625306056837,4.41054,2215.5,2214.1,39.2836]
[1625306057442,2.20527,2215.5,2215.0,2.20527]
[1625306059408,2.20527,2215.5,2215.3,2.20527]
[1625306061463,2.20527,2215.4,2215.3,2.20527]
[1625306061814,5.48297,2215.4,2215.3,2.20527]
[1625306061915,5.48297,2215.4,2214.2,1.0]
[1625306062065,5.48297,2215.4,2214.1,39.2836]
[1625306062468,5.48297,2215.4,2214.1,44.2836]
[1625306063230,5.48297,2215.4,2214.1,39.2836]
[1625306063484,5.48297,2215.4,2215.1,2.20527]
[1625306064285,5.48297,2215.4,2214.9,2.20527]
[1625306064786,5.48297,2215.4,2214.1,40.2836]
[1625306064888,5.48297,2215.4,2214.1,39.2836]
[1625306064988,5.48297,2215.4,2213.8,5.0]
[1625306065441,2.20527,2214.8,2214.7,2.20527]
[1625306066694,14.817,2216.1,2214.7,4.59227]
[1625306067449,2.20527,2215.7,2215.6,2.20527]
[1625306069460,4.41054,2215.7,2215.6,2.20527]
[1625306071813,4.41054,2215.7,2215.4,2.20527]
[1625306072368,4.41054,2215.7,2214.4,1.0]
[1625306072468,4.41054,2215.7,2214.0,5.0]
[1625306072570,8.15084,2215.7,2214.0,5.0]
[1625306073473,2.20527,2215.2,2215.0,2.20527]
[1625306075535,4.41054,2215.2,2215.0,2.20527]
[1625306077743,1.0,2216.5,2215.0,2.20527]
[1625306077842,6.16998281,2218.8,2215.0,2.20527]
[1625306077945,45.5912,2217.1,2215.0,2.20527]
[1625306078944,0.9117,2217.0,2215.0,2.20527]
[1625306079495,2.20527,2215.4,2215.3,2.20527]
[1625306081561,4.41054,2215.4,2215.3,2.20527]
[1625306083672,4.41054,2215.4,2215.0,2.20527]
[1625306085633,2.20527,2215.1,2215.0,2.20527]
[1625306085879,2.20527,2215.4,2215.0,6.04807]
[1625306085980,15.9765,2216.6,2215.0,6.04807]
[1625306085981,14.9765,2216.6,2215.0,6.04807]
[1625306086229,14.9765,2216.6,2215.3,53.7644]
[1625306086329,1.0,2217.2,2215.3,53.7644]
[1625306086429,20.0344,2217.4,2215.3,53.7644]
[1625306087232,21.0344,2217.4,2215.0,5.15447]
[1625306087332,4.011,2217.3,2215.0,5.15447]
[1625306087432,5.0,2217.2,2215.0,5.15447]
[1625306087584,2.20527,2215.7,2215.6,2.20527]
[1625306087692,2.20527,2215.7,2215.0,2.20527]
[1625306089547,2.20527,2215.2,2215.0,4.41054]
[1625306092154,2.20527,2215.7,2215.0,4.41054]
[1625306093619,4.41054,2215.7,2215.5,2.20527]
[1625306100195,4.41054,2215.7,2215.5,5.29567]
[1625306100646,3.50854,2215.7,2215.5,5.29567]
[1625306101646,3.50854,2215.7,2215.5,7.50094]
[1625306102748,4.532,2216.9,2215.5,7.50094]
[1625306102898,3.532,2216.9,2215.5,7.50094]
[1625306103300,14.3836,2217.0,2215.5,7.50094]
[1625306103653,2.20527,2216.2,2216.1,2.20527]
[1625306105499,2.20527,2216.2,2216.1,42.48007]
[1625306105601,2.20527,2216.2,2216.1,2.20527]
[1625306105704,4.41054,2216.2,2216.1,2.20527]
[1625306110979,2.20527,2216.2,2216.1,2.20527]
[1625306111733,2.20527,2216.2,2216.1,4.41054]
[1625306114234,15.0344,2217.4,2216.1,4.41054]
[1625306114383,15.0344,2217.4,2216.1,9.41054]
[1625306114834,15.0344,2217.4,2216.1,4.41054]
[1625306115685,2.20527,2216.9,2216.8,2.20527]
[1625306117740,4.41054,2216.9,2216.8,2.20527]
[1625306122260,4.41054,2216.9,2216.0,4.759]
[1625306123264,4.41054,2216.9,2216.1,41.8421]
[1625306123464,4.41054,2216.9,2216.1,46.8421]
[1625306123575,2.20527,2216.9,2216.1,46.8421]
[1625306123714,2.20527,2216.9,2216.8,4.41054]
[1625306127480,15.0344,2217.4,2216.8,4.41054]
[1625306127775,2.20527,2217.6,2217.3,4.41054]
[1625306127876,2.20527,2217.6,2217.3,6.96274]
[1625306128893,2.20527,2217.6,2217.3,4.41054]
[1625306129792,2.20527,2217.5,2217.3,4.41054]
[1625306129940,5.50977,2217.5,2217.3,4.41054]
[1625306136813,5.50977,2217.5,2217.3,5.30434]
[1625306136909,2.20527,2217.6,2217.3,5.30434]
[1625306137009,3.09637,2217.6,2217.3,5.30434]
[1625306137109,2.20527,2217.6,2217.3,5.30434]
[1625306137215,2.20527,2217.6,2217.3,4.41054]
[1625306142226,2.20527,2217.6,2217.3,7.18864]
[1625306150288,5.05227,2217.6,2217.3,4.41054]
[1625306151041,5.05227,2217.6,2216.9,4.759]
[1625306151707,5.05227,2217.6,2215.9,5.759]
[1625306151806,5.05227,2217.6,2215.9,10.759]
[1625306151955,2.20527,2217.6,2217.1,2.20527]
[1625306153875,2.20527,2217.6,2217.5,2.20527]
[1625306154076,2.20527,2217.6,2217.5,4.81307]
[1625306163658,2.20527,2217.6,2217.5,2.20527]
[1625306164107,53.03997,2217.6,2217.5,2.20527]
[1625306164457,2.20527,2217.6,2217.5,2.20527]
[1625306165510,4.97377,2217.6,2217.5,2.20527]
[1625306165963,49.01297,2217.6,2217.5,2.20527]
[1625306167014,4.97377,2217.6,2217.5,2.20527]
[1625306167214,4.97377,2217.6,2217.1,2.20527]
[1625306167970,2.20527,2217.2,2217.1,2.20527]
[1625306168774,2.20527,2217.2,2217.1,41.44667]
[1625306169877,2.20527,2217.2,2217.1,2.20527]
[1625306170475,2.20527,2217.2,2217.1,43.81957]
[1625306170575,2.20527,2217.6,2217.1,46.23977]
[1625306171881,2.20527,2217.6,2217.1,47.14397]
[1625306171980,2.20527,2217.6,2217.5,2.20527]
[1625306173793,2.20527,2217.6,2217.1,2.20527]
[1625306173893,2.20527,2217.6,2217.1,59.13617]
[1625306174039,2.20527,2217.6,2217.5,2.20527]
[1625306175400,2.20527,2217.6,2217.1,2.20527]
[1625306175959,1.0,2218.4,2217.1,2.20527]
[1625306176055,2.20527,2218.4,2218.3,5.34817]
[1625306176557,2.20527,2218.4,2218.3,3.1429]
[1625306177110,43.90257,2218.4,2217.2,1.0]
[1625306177210,47.51547,2218.4,2216.4,19.7994]
[1625306177312,47.51547,2218.4,2216.5,1.0]
[1625306177410,47.51547,2218.4,2216.5,1.19552458]
[1625306177615,47.51547,2218.4,2216.6,0.19545474]
[1625306177811,47.51547,2218.4,2216.6,16.48563674]
[1625306177911,47.51547,2218.4,2216.7,1.0]
[1625306178120,2.20527,2217.9,2217.5,2.20527]
[1625306178217,4.86117,2217.9,2216.7,1.0]
[1625306178315,4.86117,2217.9,2216.5,1.0]
[1625306178417,4.86117,2217.9,2216.4,14.7994]
[1625306180069,2.20527,2217.4,2217.3,2.20527]
[1625306180621,2.20527,2217.4,2216.4,14.7994]
[1625306180773,4.93307,2217.4,2216.4,14.7994]
[1625306180871,4.93307,2217.4,2216.3,4.759]
[1625306182179,4.93307,2217.4,2217.1,2.20527]
[1625306184083,2.20527,2217.2,2217.1,2.20527]
[1625306184587,2.20527,2217.2,2216.9,2.20527]
[1625306184790,2.20527,2217.2,2216.3,4.759]
[1625306186144,2.20527,2216.6,2216.5,2.20527]
[1625306186845,2.20527,2216.6,2216.3,4.759]
[1625306186997,2.20527,2216.6,2216.2,2.20527]
[1625306188099,2.20527,2216.3,2216.2,2.20527]
[1625306188247,2.20527,2216.3,2215.9,2.20527]
[1625306190201,2.20527,2216.0,2215.9,2.20527]
[1625306194488,5.54517,2216.0,2215.9,2.20527]
[1625306195191,5.54517,2216.0,2215.7,8.78408033]
[1625306195290,5.54517,2216.0,2215.7,6.57881033]
[1625306195644,5.54517,2216.0,2215.7,1.81981033]
[1625306195893,5.54517,2216.0,2215.0,1.82311599]
[1625306196098,5.54517,2216.0,2215.2,2.20527]
[1625306196195,5.69107,2215.3,2215.2,2.20527]
[1625306198094,5.69107,2215.3,2214.7,1.82422763]
[1625306198197,2.20527,2214.8,2214.7,2.20527]
[1625306199198,2.20527,2214.8,2214.7,3.50797073]
[1625306199896,2.20527,2214.8,2214.7,2.20527]
[1625306202204,4.41054,2215.3,2214.7,2.20527]
[1625306202305,4.41054,2215.3,2214.7,4.93917]
[1625306202402,4.41054,2215.3,2214.7,6.24042541]
[1625306202854,4.41054,2215.3,2214.7,4.93917]
[1625306204204,2.20527,2214.8,2214.7,4.93917]
[1625306209387,2.20527,2214.8,2214.7,2.20527]
[1625306214713,2.20527,2214.8,2214.7,4.85067]
[1625306214860,2.20527,2215.3,2214.7,4.85067]
[1625306216319,2.20527,2215.3,2215.2,2.20527]
[1625306216423,2.20527,2215.3,2215.2,4.75897]
[1625306218686,53.3293,2216.1,2215.2,4.75897]
[1625306219879,15.2031,2216.6,2215.2,4.75897]
[1625306220378,2.20527,2215.7,2215.6,2.20527]
[1625306225101,2.20527,2215.8,2215.6,2.20527]
[1625306226154,2.20527,2215.8,2215.2,9.51797]
[1625306226358,2.20527,2215.5,2215.2,11.72324]
[1625306227911,2.20527,2215.5,2215.2,4.75897]
[1625306228015,5.65687,2215.5,2214.5,5.6569]
[1625306228166,5.65687,2215.5,2214.5,4.759]
[1625306228367,2.20527,2215.0,2214.9,2.20527]
[1625306229719,5.61507,2215.0,2214.9,2.20527]
[1625306230471,7.82034,2215.0,2214.9,2.20527]
[1625306234246,53.1173,2215.7,2214.9,2.20527]
[1625306234347,53.1173,2215.7,2214.9,5.12347]
[1625306234445,2.20527,2215.4,2215.3,2.20527]
[1625306235998,2.20527,2215.4,2214.9,2.20527]
[1625306236400,2.20527,2215.0,2214.9,2.20527]
[1625306240604,2.20527,2215.0,2214.9,6.96427]
[1625306241457,2.20527,2215.4,2214.9,6.96427]
[1625306241557,2.20527,2215.4,2214.9,10.45727]
[1625306244418,2.20527,2215.4,2215.3,2.20527]